bitfinex-derivatives/quotes_ETHF0:USTF0_20250917
["timestamp","ask_amount","ask_price","bid_price","bid_amount"]
[1758072250856,0.7255,4516.1,4516.0,0.1991]
[1758072251052,0.7255,4516.1,4516.0,0.5065]
[1758072251550,0.215,4516.1,4516.0,0.8346]
[1758072251750,0.7255,4516.1,4516.0,0.5065]
[1758072252151,0.7255,4516.1,4516.0,0.706]
[1758072253954,0.4288,4516.1,4516.0,0.8346]
[1758072254454,0.224,4516.3,4516.0,0.8346]
[1758072254657,0.224,4516.3,4516.2,0.706]
[1758072255354,3.2078,4516.7,4516.2,0.706]
[1758072255658,0.1197,4519.0,4516.6,3.14934428]
[1758072255659,3.2078,4517.2,4516.6,3.14934428]
[1758072255854,3.4228,4517.2,4517.1,0.3986]
[1758072256259,3.6468,4517.2,4517.1,0.706]
[1758072256954,0.439,4517.2,4517.1,0.706]
[1758072258359,0.224,4517.2,4517.1,0.706]
[1758072259553,0.439,4517.5,4517.4,0.1991]
[1758072259758,0.439,4517.5,4517.4,0.706]
[1758072260256,0.2967,4517.4,4517.1,0.3074]
[1758072260457,0.7255,4517.2,4517.1,0.706]
[1758072260851,0.4288,4517.2,4517.1,0.706]
[1758072263760,0.224,4517.5,4517.2,0.3074]
[1758072263962,0.224,4517.5,4517.4,0.706]
[1758072264758,35.1218,4517.8,4517.4,0.3986]
[1758072264959,0.75367259,4517.7,4517.6,0.706]
[1758072265162,0.52967259,4517.7,4517.6,0.706]
[1758072265362,0.224,4517.9,4517.8,0.3986]
[1758072265562,0.75366883,4517.9,4517.8,0.706]
[1758072266269,0.96866883,4517.9,4517.8,0.706]
[1758072267760,0.74466883,4517.9,4517.8,0.706]
[1758072267960,0.439,4517.9,4517.8,0.706]
[1758072268264,0.74474619,4517.9,4517.8,0.706]
[1758072269967,1.27944619,4517.9,4517.8,0.706]
[1758072272170,1.27944619,4517.9,4517.8,0.5065]
[1758072274471,4.48724619,4517.9,4517.6,0.0221]
[1758072274771,0.7474,4517.7,4517.6,0.0221]
[1758072274973,1.27714619,4517.7,4517.6,0.3183]
[1758072275174,1.27714619,4517.7,4517.6,0.491]
[1758072277574,1.27714619,4517.7,4517.0,0.3526]
[1758072277772,0.2127,4517.2,4517.1,0.6915]
[1758072277975,0.74244619,4517.2,4517.1,0.6915]
[1758072278786,0.52974619,4517.2,4517.1,0.6915]
[1758072279878,0.52974619,4517.2,4517.1,5.63225322]
[1758072280284,0.52974619,4517.2,4517.1,5.85363322]
[1758072280784,0.52974619,4517.2,4517.1,5.63225322]
[1758072281381,0.52974619,4517.2,4517.1,5.85625322]
[1758072283083,0.3222,4517.9,4517.2,0.2962]
[1758072283288,0.7474,4517.9,4517.8,0.491]
[1758072283588,1.27644992,4517.9,4517.8,0.46994954]
[1758072285384,1.27644992,4517.9,4517.8,0.1948]
[1758072285791,1.27644992,4517.9,4517.6,0.2962]
[1758072285994,0.7474,4517.7,4517.6,0.491]
[1758072286284,0.52904992,4517.7,4517.5,0.94075322]
[1758072286490,0.5349,4517.7,4517.6,0.6915]
[1758072286790,1.06460361,4517.7,4517.6,0.6915]
[1758072286985,1.27710361,4517.7,4517.6,0.6915]
[1758072288090,0.52970361,4517.7,4517.6,0.6915]
[1758072288385,1.27710361,4517.7,4517.6,0.6915]
[1758072288994,1.27710361,4517.7,4517.6,0.1948]
[1758072292200,0.4252,4517.2,4517.0,0.6851]
[1758072292398,1.27710361,4517.1,4517.0,0.6851]
[1758072293401,0.5487,4517.0,4516.9,0.2169]
[1758072293602,0.52970361,4517.0,4516.9,0.7136]
[1758072293790,0.3222,4517.5,4517.4,0.3953]
[1758072293995,1.06511729,4517.5,4517.4,1.63225322]
[1758072294204,1.06511729,4517.5,4517.4,4.84005322]
[1758072295208,1.27761729,4517.5,4517.4,4.84005322]
[1758072295707,1.40591729,4517.5,4517.4,1.63225322]
[1758072296105,1.40591729,4517.5,4517.4,1.33605322]
[1758072296909,1.40591729,4517.5,4517.4,1.64855322]
[1758072298104,0.74291729,4517.5,4517.4,1.64855322]
[1758072298310,0.53021729,4517.5,4517.4,1.64855322]
[1758072299013,1.25171729,4517.5,4517.4,1.64855322]
[1758072299414,0.7215,4517.5,4517.4,1.64855322]
[1758072300315,0.8389,4517.5,4517.4,0.7078]
[1758072300514,0.31,4517.4,4517.2,1.25745322]
[1758072300715,0.31,4517.7,4517.2,1.38455322]
[1758072300917,1.04298901,4517.6,4517.5,0.7163]
[1758072301210,1.25158901,4517.6,4517.5,0.7163]
[1758072301413,0.7215,4517.4,4517.3,0.5012]
[1758072301612,0.7215,4517.4,4517.2,0.0221]
[1758072304321,0.7215,4517.4,4517.3,1.44195322]
[1758072305614,0.7215,4517.4,4517.3,1.65705322]
[1758072307412,0.5129,4517.9,4517.8,0.4217]
[1758072307619,1.25247035,4517.9,4517.8,1.65705322]
[1758072310629,1.04387035,4517.9,4517.8,1.65705322]
[1758072314024,1.25247035,4517.9,4517.6,0.94075322]
[1758072314332,1.25247035,4517.9,4517.2,0.0221]
[1758072314333,0.7215,4517.3,4517.2,0.0221]
[1758072314543,1.25247035,4517.3,4517.2,0.0221]
[1758072314735,1.25247035,4517.3,4516.9,3.2078]
[1758072315033,0.8389,4517.0,4516.9,4.64975322]
[1758072315325,1.37881628,4517.0,4516.9,4.64975322]
[1758072315534,1.37881628,4517.0,4516.9,3.2078]
[1758072316423,1.37881628,4517.0,4516.5,0.2946]
[1758072316632,0.7215,4516.6,4516.5,0.5012]
[1758072317138,0.7215,4516.6,4516.5,0.7163]
[1758072317335,0.7215,4516.6,4516.5,1.65705322]
[1758072317838,0.7215,4516.6,4516.5,1.50063937]
[1758072323545,0.1174,4516.5,4516.4,3.2078]
[1758072323840,0.8389,4516.5,4516.4,3.2078]
[1758072324841,5.06031001,4516.5,4516.3,0.0221]
[1758072325139,5.48243608,4516.4,4516.3,0.0221]
[1758072325535,0.4115,4515.7,4515.6,3.2078]
[1758072325736,0.7215,4515.7,4515.6,3.2078]
[1758072326334,0.4115,4514.8,4514.7,1.50063937]
[1758072326533,0.7215,4514.8,4514.7,1.50063937]
[1758072327542,0.7215,4514.8,4514.7,0.99093937]
[1758072328346,0.7215,4514.8,4514.7,1.50563937]
[1758072330436,0.8232,4515.5,4515.4,0.7182]
[1758072330640,1.0462,4515.5,4515.4,1.50253937]
[1758072332445,0.9288,4515.5,4515.4,1.50253937]
[1758072333841,0.9288,4515.5,4515.4,0.2035]
[1758072333842,1.0528,4515.5,4515.4,0.2035]
[1758072334040,0.7058,4515.2,4515.1,0.5069]
[1758072334239,0.124,4515.0,4514.8,0.3034]
[1758072334450,0.7058,4514.7,4514.6,3.7147]
[1758072334842,0.7058,4514.7,4514.6,3.926]
[1758072335441,0.7058,4514.7,4514.6,4.71033937]
[1758072335640,0.7058,4514.7,4514.6,4.40693937]
[1758072336042,0.7058,4514.7,4514.6,4.19563937]
[1758072336546,0.5112,4515.1,4515.0,0.4148]
[1758072336748,0.9288,4515.1,4515.0,1.50253937]
[1758072337444,0.7058,4515.1,4515.0,1.50253937]
[1758072337646,0.7058,4515.7,4515.6,0.2035]
[1758072337848,0.9288,4515.7,4515.6,0.5069]
[1758072338150,0.9288,4515.7,4515.6,0.2035]
[1758072338951,0.7058,4515.7,4515.6,0.2035]
[1758072339245,3.4174,4515.8,4515.7,0.7182]
[1758072339549,3.9136,4515.8,4515.7,1.50253937]
[1758072340252,0.223,4516.0,4515.9,0.7182]
[1758072340647,0.7342,4516.0,4515.9,0.7182]
[1758072341051,0.4326,4516.0,4515.9,0.7182]
[1758072342049,0.7342,4516.0,4515.9,0.7182]
[1758072343757,0.5112,4516.0,4515.9,0.7182]
[1758072343953,0.1174,4516.5,4516.0,0.1195]
[1758072344258,0.9288,4516.4,4516.3,1.50253937]
[1758072346557,0.3016,4516.3,4516.1,0.3034]
[1758072346755,0.4042,4516.2,4516.1,0.5069]
[1758072346960,0.7058,4516.2,4516.1,0.5069]
[1758072347266,0.7058,4516.2,4516.1,0.7182]
[1758072347458,0.3016,4516.3,4516.2,0.3034]
[1758072347958,0.9288,4516.4,4516.3,0.4148]
[1758072348163,0.9288,4516.4,4516.3,0.7182]
[1758072350255,1.24698083,4516.4,4516.3,0.7182]
[1758072350464,1.16838083,4516.4,4515.8,0.3034]
[1758072350755,0.223,4516.4,4515.9,0.3034]
[1758072350956,0.9288,4516.4,4516.3,0.5069]
[1758072351160,1.46999001,4516.4,4516.3,0.5069]
[1758072351662,1.46999001,4516.4,4516.3,0.2035]
[1758072351958,1.46999001,4516.4,4516.0,0.3034]
[1758072352160,0.7058,4515.8,4515.3,0.78433937]
[1758072352459,0.6272,4515.7,4515.6,0.7182]
[1758072352860,0.9288,4515.7,4515.6,0.7182]
[1758072356472,0.9288,4515.7,4515.6,1.50253937]
[1758072360068,0.9228,4515.7,4515.6,1.48643937]
[1758072361568,0.6998,4515.7,4515.6,1.48643937]
[1758072361773,0.9228,4515.7,4515.6,1.48643937]
[1758072361976,0.1235,4515.5,4515.4,0.0221]
[1758072362173,0.1235,4515.5,4514.6,3.7104]
[1758072362174,0.2107,4514.7,4514.6,3.7104]
[1758072362369,0.7116,4514.7,4514.6,3.9099]
[1758072365172,0.7116,4514.7,4514.6,0.1956]
[1758072365767,0.7116,4514.7,4514.6,0.7021]
[1758072367870,0.9346,4514.7,4514.6,0.7021]
[1758072369976,0.5063,4514.2,4514.1,0.7021]
[1758072370176,0.5063,4514.2,4514.1,1.48643937]
[1758072376080,0.223,4514.7,4514.1,1.17943937]
[1758072376274,0.7116,4514.5,4514.4,1.48643937]
[1758072377783,0.7116,4514.5,4514.4,0.7021]
[1758072381278,0.8351,4514.5,4514.4,0.7021]
[1758072381789,1.0581,4514.5,4514.4,0.7021]
[1758072387279,0.7116,4513.6,4513.5,0.3951]
[1758072387482,0.7116,4513.4,4512.9,3.2078]
[1758072387791,0.7116,4513.0,4512.9,3.9099]
[1758072390484,0.8365,4513.0,4512.4,3.2078]
[1758072390685,0.516,4512.5,4512.4,3.6073]
[1758072391288,0.516,4512.5,4512.4,3.9091]
[1758072393593,0.713,4512.5,4512.4,3.9091]
[1758072394490,0.8379,4512.5,4512.4,3.4032]
[1758072394994,0.8379,4512.5,4512.4,3.705]
[1758072395998,0.8379,4512.5,4512.4,3.9091]
[1758072396296,0.713,4512.5,4512.4,3.9091]
[1758072396890,0.223,4512.6,4512.4,3.9091]
[1758072397091,0.223,4512.6,4512.5,0.8193]
[1758072397397,3.2078,4513.4,4512.7,0.3995]
[1758072397596,1.40842027,4513.3,4513.2,0.1954]
[1758072397994,42.20842027,4513.3,4513.2,0.1954]
[1758072398197,42.51142027,4513.3,4513.2,0.1954]
[1758072398496,42.06684026,4513.3,4513.2,0.4972]
[1758072398793,42.28984026,4513.3,4513.2,0.1954]
[1758072398996,0.713,4512.5,4512.4,3.9091]
[1758072399190,1.0609,4512.5,4512.4,3.9091]
[1758072401500,1.0609,4512.5,4512.4,0.7013]
[1758072401891,1.0609,4512.5,4512.4,0.3995]
[1758072402087,1.0609,4512.5,4511.8,0.0221]
[1758072402292,0.713,4511.9,4511.8,0.2175]
[1758072402500,0.936,4511.9,4511.8,0.0221]
[1758072402687,0.936,4511.9,4511.4,0.3018]
[1758072402891,0.936,4511.9,4511.8,0.1954]
[1758072403691,0.936,4511.9,4511.8,0.4972]
[1758072404092,0.936,4511.9,4511.8,0.1954]
[1758072404495,0.936,4511.9,4511.8,0.4972]
[1758072407804,0.936,4511.9,4511.5,0.3018]
[1758072408302,0.936,4511.9,4511.4,0.3018]
[1758072408501,0.213,4511.5,4511.4,0.7013]
[1758072408705,0.516,4511.5,4511.4,0.7013]
[1758072408904,41.103,4511.8,4511.7,0.3995]
[1758072409093,41.316,4511.8,4511.7,0.7013]
[1758072409298,41.736,4511.8,4511.7,0.7013]
[1758072409699,41.513,4511.8,4511.7,0.7013]
[1758072409898,41.736,4511.8,4511.7,0.7013]
[1758072410505,41.013,4511.8,4511.7,0.7013]
[1758072410706,0.436,4511.8,4511.7,0.7013]
[1758072411399,0.739,4511.8,4511.7,0.7013]
[1758072413605,40.8,4512.3,4512.0,0.118]
[1758072413812,0.516,4512.3,4512.2,0.7013]
[1758072414013,1.06916645,4512.3,4512.2,0.7013]
[1758072414203,1.29216645,4512.3,4512.2,0.7013]
[1758072414601,1.26616645,4512.3,4512.2,0.7013]
[1758072414810,0.936,4512.3,4512.2,0.7013]
[1758072415017,0.436,4512.3,4512.2,0.7013]
[1758072415616,0.7401,4512.3,4512.2,0.7013]
[1758072416019,3.2078,4513.0,4512.9,0.3128]
[1758072416218,3.4308,4513.0,4512.9,0.7178]
[1758072416424,1.28851777,4513.0,4512.9,0.7178]
[1758072417126,1.49711777,4513.0,4512.9,0.7178]
[1758072422020,3.2078,4513.6,4513.0,0.1185]
[1758072422220,0.97725701,4513.5,4513.4,0.4154]
[1758072422422,1.49835701,4513.5,4513.4,0.726]
[1758072422626,0.7401,4513.5,4513.4,0.726]
[1758072422816,0.4225,4513.5,4513.4,0.726]
[1758072423027,0.5171,4513.8,4513.7,0.726]
[1758072423331,0.9436,4513.8,4513.7,0.726]
[1758072423525,1.498177,4513.8,4513.7,0.726]
[1758072425328,0.9436,4513.8,4513.7,0.726]
[1758072426227,0.7401,4513.8,4513.7,0.726]
[1758072426728,0.223,4513.8,4513.7,0.726]
[1758072426924,3.2078,4514.2,4513.8,0.3106]
[1758072427128,0.223,4513.9,4513.8,0.3106]
[1758072427332,0.223,4513.9,4513.8,1.66815824]
[1758072427723,32.2246,4514.4,4513.8,1.35755824]
[1758072427923,0.223,4514.3,4514.2,1.66815824]
[1758072429124,0.4225,4514.3,4514.2,1.66815824]
[1758072429321,0.7401,4514.3,4514.2,1.66815824]
[1758072430430,0.5171,4514.3,4514.2,1.66815824]
[1758072430937,0.1995,4514.3,4514.2,1.66815824]
[1758072432137,0.7401,4514.5,4514.4,0.726]
[1758072432727,0.9436,4514.5,4514.4,0.726]
[1758072434437,1.0659,4514.5,4514.4,0.726]
[1758072435034,1.0659,4514.5,4514.4,0.2126]
[1758072435335,0.403,4514.3,4514.2,3.731]
[1758072435538,0.7206,4514.3,4514.2,3.731]
[1758072435730,0.7206,4514.3,4514.2,3.9338]
[1758072436133,0.223,4514.5,4514.2,3.9338]
[1758072436334,0.223,4514.5,4514.4,0.4154]
[1758072436537,0.7401,4514.5,4514.4,0.726]
[1758072437636,0.9436,4514.5,4514.4,0.726]
[1758072438141,1.0659,4514.5,4514.4,0.726]
[1758072439328,0.9436,4514.5,4514.4,0.726]
[1758072439533,3.2078,4514.8,4514.4,0.726]
[1758072439534,0.3176,4514.8,4514.7,0.4154]
[1758072439834,0.223,4514.8,4514.7,1.51098715]
[1758072440038,0.3176,4515.2,4514.7,1.51098715]
[1758072440240,0.223,4515.1,4515.0,0.1185]
[1758072440437,0.223,4515.1,4515.0,0.5339]
[1758072440834,0.223,4515.1,4515.0,0.8445]
[1758072441236,0.4225,4515.1,4515.0,1.62948715]
[1758072441536,0.7401,4515.1,4515.0,1.62948715]
[1758072442743,0.5171,4515.1,4515.0,1.62948715]
[1758072444340,0.7206,4515.1,4515.0,1.62948715]
[1758072444743,0.7206,4515.1,4515.0,1.51098715]
[1758072447039,0.7206,4515.1,4514.8,0.0221]
[1758072447236,0.403,4514.9,4514.8,0.5453]
[1758072447446,0.7206,4514.9,4514.8,0.5453]
[1758072447637,0.223,4515.2,4515.1,0.4154]
[1758072447842,0.7206,4515.7,4515.6,0.4154]
[1758072448038,1.71022107,4515.7,4515.6,0.726]
[1758072448246,1.06226107,4515.7,4515.6,0.726]
[1758072448546,0.223,4515.8,4515.7,0.3144]
[1758072448734,0.223,4515.8,4515.7,1.51238715]
[1758072449545,0.7332,4516.3,4516.2,0.5124]
[1758072449742,1.50166235,4516.3,4516.2,0.5124]
[1758072450539,1.50166235,4516.3,4516.2,0.7274]
[1758072450735,0.97116235,4516.3,4516.2,0.7274]
[1758072451047,1.28886235,4516.3,4516.2,0.7274]
[1758072451441,1.50166235,4516.3,4516.2,0.7274]
[1758072453343,1.27866235,4516.3,4516.2,0.7274]
[1758072453550,1.50166235,4516.3,4516.2,0.7274]
[1758072454151,1.28886235,4516.3,4516.2,0.7274]
[1758072454543,1.50166235,4516.3,4516.2,0.7274]
[1758072455250,1.50166235,4516.3,4516.0,0.1475]
[1758072455450,0.9562,4516.3,4516.2,0.78498715]
[1758072455650,1.50095276,4516.3,4516.2,0.78498715]
[1758072457152,1.27795276,4516.3,4516.0,0.0221]
[1758072457353,0.7332,4516.1,4516.0,0.0221]
[1758072457554,1.27795276,4516.1,4516.0,0.0221]
[1758072457850,0.4416,4516.0,4515.9,0.78498715]
[1758072458051,1.40185276,4516.0,4515.9,0.78498715]
[1758072459252,0.66865276,4516.0,4515.6,0.78498715]
[1758072459455,0.7332,4515.7,4515.6,0.78498715]
[1758072459650,1.06515276,4515.7,4515.6,0.78498715]
[1758072460459,1.27795276,4515.7,4515.6,0.78498715]
[1758072463662,0.7332,4515.7,4515.6,0.78498715]
[1758072469868,0.3177,4515.7,4515.6,0.78498715]
[1758072470965,0.5204,4515.7,4515.6,0.78498715]
[1758072471673,0.7332,4515.7,4515.6,0.78498715]
[1758072476072,0.4155,4515.7,4515.5,3.2078]
[1758072476271,0.6948,4515.6,4515.5,3.4308]
[1758072477366,0.6948,4515.6,4515.5,4.21578715]
[1758072478572,0.4938,4515.6,4515.5,4.21578715]
[1758072481078,0.2954,4515.6,4515.5,4.21578715]
[1758072481476,0.2999,4515.9,4515.5,4.43724715]
[1758072481676,3.3301,4517.0,4516.5,0.165]
[1758072481879,3.5336,4517.0,4516.9,1.19188715]
[1758072482074,4.29224118,4517.0,4516.9,1.19188715]
[1758072483279,4.29224118,4517.0,4516.9,0.78498715]
[1758072483679,4.59214118,4517.0,4516.9,0.78498715]
[1758072484189,4.0448,4517.0,4516.9,0.78498715]
[1758072484373,4.0448,4517.0,4516.9,0.98608715]
[1758072488083,0.837,4517.0,4516.9,0.98608715]
[1758072489388,0.2999,4517.0,4516.9,4.56468715]
[1758072489582,0.2999,4517.4,4516.9,4.39968715]
[1758072489783,0.6257,4517.5,4517.4,0.5719]
[1758072490077,0.4222,4517.5,4517.4,0.5719]
[1758072490489,0.6257,4517.5,4517.4,0.4069]
[1758072490982,0.837,4517.5,4517.4,0.4069]
[1758072491183,0.837,4517.5,4517.4,3.6147]
[1758072495894,0.837,4517.5,4517.4,2.6147]
[1758072501897,0.837,4517.5,4517.4,3.55547149]
[1758072509201,1.38262353,4517.5,4517.4,3.55547149]
[1758072509908,1.38262353,4517.5,4517.4,2.6147]
[1758072510300,1.38262353,4517.5,4517.4,3.55547149]
[1758072512504,1.38262353,4517.5,4517.2,0.0221]
[1758072512802,0.7309,4517.3,4517.2,0.0221]
[1758072513102,0.96592353,4517.3,4517.1,0.94077149]
[1758072513310,1.27652353,4517.2,4517.1,0.94077149]
[1758072513504,0.7309,4517.2,4517.1,0.94077149]
[1758072513702,0.4203,4516.6,4516.5,0.6851]
[1758072513906,0.7309,4516.6,4516.5,0.6851]
[1758072514413,0.3106,4516.6,4516.5,0.6851]
[1758072515102,0.5168,4516.6,4516.5,0.6851]
[1758072516901,0.4302,4516.5,4516.4,4.37157149]
[1758072518809,0.3106,4517.4,4516.4,8.59298149]
[1758072519009,0.3106,4517.4,4517.3,0.94077149]
[1758072519205,0.3106,4517.4,4517.3,1.16377149]
[1758072524912,0.1196,4518.5,4517.9,0.2856]
[1758072525112,0.3232,4518.0,4517.9,1.15837149]
[1758072527018,0.6338,4518.0,4517.9,1.15837149]
[1758072527416,0.8479,4518.0,4517.9,1.15837149]
[1758072530816,0.4203,4517.8,4517.7,3.4308]
[1758072531021,0.7309,4517.8,4517.7,4.48037149]
[1758072535326,0.7309,4517.8,4517.7,4.58917149]
[1758072543723,0.117,4518.0,4517.7,4.65747149]
[1758072544026,0.1196,4518.5,4518.4,0.2184]
[1758072544231,0.1196,4518.5,4518.4,1.22747149]
[1758072544424,0.66709911,4518.5,4518.4,1.22747149]
[1758072544623,0.95919911,4518.5,4518.4,1.22747149]
[1758072547626,1.17059911,4518.5,4518.4,1.15917149]
[1758072548025,1.37049911,4518.5,4518.4,1.15917149]
[1758072549727,1.37049911,4518.5,4518.4,1.04997149]
[1758072553427,0.823,4518.5,4518.4,1.04997149]
[1758072553835,1.37123273,4518.5,4518.4,1.04997149]
[1758072554234,0.823,4518.5,4518.4,1.04997149]
[1758072555132,0.823,4518.5,4518.4,1.15917149]
[1758072555531,0.823,4518.5,4518.4,1.04997149]
[1758072557530,0.823,4518.5,4518.4,1.15917149]
[1758072557730,0.4117,4518.5,4518.4,1.22747149]
[1758072560942,0.6231,4518.5,4518.4,1.15917149]
[1758072561739,0.6231,4518.5,4518.4,1.00198899]
[1758072562038,0.6231,4518.5,4518.4,1.22498899]
[1758072562937,0.6231,4518.5,4518.3,3.2078]
[1758072562938,0.5309,4518.5,4518.3,3.2078]
[1758072563143,0.7034,4518.4,4518.3,1.00658899]
[1758072564443,0.7034,4518.4,4518.3,0.78358899]
[1758072565355,0.7034,4518.4,4518.3,0.89278899]
[1758072571456,0.7034,4518.4,4518.3,0.78358899]
[1758072573058,1.25176514,4518.4,4518.3,0.78358899]
[1758072573461,0.7034,4518.4,4518.3,0.78358899]
[1758072574156,0.7034,4518.4,4518.3,0.99998899]
[1758072576060,0.45,4519.4,4519.3,0.1082]
[1758072576361,0.45,4519.4,4519.3,5.05907798]
[1758072576555,0.7705,4519.4,4519.3,5.05907798]
[1758072576960,0.7705,4519.4,4519.3,4.27548899]
[1758072577161,0.9677,4519.4,4519.3,3.4242]
[1758072577356,1.1628,4519.4,4519.3,0.99998899]
[1758072580062,0.7705,4519.4,4519.3,1.06768899]
[1758072581362,0.7705,4519.4,4519.3,1.85127798]
[1758072581563,0.7705,4519.4,4519.3,1.06768899]
[1758072582164,0.45,4519.4,4519.3,1.85127798]
[1758072582558,0.7705,4519.4,4519.3,1.85127798]
[1758072586566,0.7705,4519.4,4519.3,1.06768899]
[1758072586870,0.9677,4519.4,4519.3,1.85127798]
[1758072587060,0.9677,4519.4,4519.3,1.78357798]
[1758072587260,0.9677,4519.4,4519.3,0.99998899]
[1758072587465,0.9677,4519.4,4519.3,1.78357798]
[1758072588470,1.1628,4519.4,4519.3,0.99998899]
[1758072590567,1.1628,4519.4,4519.3,0.78358899]
[1758072590771,1.1628,4519.4,4519.3,1.00658899]
[1758072592072,1.1628,4519.4,4519.3,0.78358899]
[1758072592675,1.1628,4519.4,4519.3,0.89178899]
[1758072593271,1.1628,4519.4,4519.3,0.78358899]
[1758072593578,1.1628,4519.4,4519.1,3.2299]
[1758072593579,0.7128,4519.2,4519.1,3.2299]
[1758072593778,0.7128,4519.2,4519.1,0.80568899]
[1758072593971,0.7128,4519.2,4519.1,0.78358899]
[1758072596080,0.714,4518.9,4518.8,0.223]
[1758072597179,0.714,4518.9,4518.8,0.78358899]
[1758072600275,0.714,4518.9,4518.6,0.0221]
[1758072600581,0.7045,4518.7,4518.6,0.0221]
[1758072600777,1.25146195,4518.7,4518.6,0.0221]
[1758072601182,1.25146195,4518.7,4518.2,0.78358899]
[1758072601376,0.7045,4518.3,4518.2,0.78358899]
[1758072601577,1.25146195,4518.3,4518.2,0.78358899]
[1758072602183,0.7045,4517.7,4517.6,0.223]
[1758072602379,0.7045,4517.7,4517.6,1.00658899]
[1758072602585,0.7045,4517.7,4517.6,1.11628899]
[1758072604989,0.7045,4517.7,4517.6,1.22598899]
[1758072605284,0.5091,4517.7,4517.6,1.22598899]
[1758072605485,0.2142,4518.5,4518.4,0.3929]
[1758072605683,0.2142,4518.5,4518.4,1.47498899]
[1758072605880,0.1273,4519.0,4518.5,0.2985]
[1758072606091,0.2142,4518.8,4518.7,1.47498899]
[1758072606286,0.1273,4519.0,4518.7,1.17648899]
[1758072606485,0.3415,4519.0,4518.9,0.3929]
[1758072606789,0.3415,4519.0,4518.9,0.6914]
[1758072606990,0.5369,4519.0,4518.9,0.6914]
[1758072607191,0.5369,4519.0,4518.9,0.3929]
[1758072607392,0.8318,4519.0,4518.9,0.3929]
[1758072609298,0.8318,4519.0,4518.9,0.1975]
[1758072609599,0.8318,4519.0,4518.9,0.78358899]
[1758072609788,0.8318,4519.0,4518.9,0.98108899]
[1758072610391,0.8318,4519.0,4518.9,0.78358899]
[1758072610592,0.8318,4519.0,4518.9,0.98108899]
[1758072611689,0.8318,4519.0,4518.9,0.78358899]
[1758072614296,0.5369,4519.0,4518.6,0.78358899]
[1758072614499,0.7045,4518.7,4518.6,0.78358899]
[1758072615207,0.5091,4518.7,4518.6,1.17648899]
[1758072615506,0.7045,4518.7,4518.6,1.17648899]
[1758072615897,0.7045,4518.7,4518.6,0.98108899]
[1758072616099,0.4096,4518.4,4518.0,0.6851]
[1758072616304,0.7045,4518.2,4517.6,3.2078]
[1758072616497,0.7045,4517.8,4517.7,0.78358899]
[1758072617596,0.1236,4517.5,4517.1,0.78358899]
[1758072617796,0.8281,4517.5,4517.1,0.78358899]
[1758072618000,0.2949,4517.4,4517.1,0.78358899]
[1758072618195,0.7045,4517.2,4517.1,0.98108899]
[1758072618799,0.7045,4517.2,4517.1,0.78358899]
[1758072619410,0.7045,4517.2,4517.1,0.98108899]
[1758072619707,0.5091,4517.2,4517.1,1.47498899]
[1758072620104,0.2949,4517.2,4517.1,1.47498899]
[1758072620304,0.3466,4517.5,4517.2,0.2985]
[1758072620507,0.8557,4517.5,4517.4,1.47498899]
[1758072622306,0.6327,4517.5,4517.4,1.47498899]
[1758072623706,0.8281,4517.5,4517.4,1.17648899]
[1758072623907,0.8281,4517.5,4517.4,0.1975]
[1758072624511,0.7045,4517.4,4517.2,0.0221]
[1758072625112,0.1236,4516.5,4516.3,3.2078]
[1758072625307,0.8281,4516.0,4515.9,0.3929]
[1758072625507,0.2949,4515.9,4515.8,3.2078]
[1758072625713,0.7045,4515.9,4515.8,3.4053]
[1758072626907,0.7045,4515.9,4515.8,3.2078]
[1758072627110,0.7045,4515.3,4515.2,0.496]
[1758072627311,0.7045,4515.3,4515.2,0.1975]
[1758072628414,0.1236,4515.5,4515.0,3.2078]
[1758072628415,0.7133,4515.1,4515.0,3.2078]
[1758072631909,0.1293,4514.5,4514.4,0.2102]
[1758072632112,0.5457,4514.5,4514.4,0.2102]
[1758072632519,0.8426,4514.5,4514.4,0.4113]
[1758072633212,0.5011,4514.5,4514.4,0.7061]
[1758072633415,0.5011,4514.8,4514.7,0.4113]
[1758072633711,0.5011,4514.8,4514.7,1.64696545]
[1758072634520,0.2969,4514.7,4514.5,0.94086545]
[1758072634720,0.5091,4514.7,4514.6,0.2102]
[1758072635022,0.7133,4514.7,4514.6,0.4113]
[1758072635616,0.7133,4514.7,4514.6,3.6191]
[1758072637317,0.7133,4514.7,4514.6,3.9139]
[1758072638728,0.7133,4514.7,4514.6,3.6191]
[1758072639417,0.4164,4514.2,4514.1,3.2078]
[1758072639719,0.4164,4514.2,4513.2,0.7061]
[1758072639720,0.7133,4513.3,4513.2,0.7061]
[1758072641726,0.7133,4513.3,4513.2,0.4113]
[1758072642220,0.7133,4513.3,4513.2,0.7061]
[1758072643026,0.7133,4513.3,4513.2,0.4113]
[1758072643220,3.3371,4513.5,4513.2,0.7061]
[1758072643425,3.8382,4513.5,4513.4,1.64696545]
[1758072643723,4.0504,4513.5,4513.4,1.64696545]
[1758072643918,4.0504,4513.5,4513.4,1.35216545]
[1758072644321,4.0504,4513.5,4513.4,0.94086545]
[1758072644527,0.7133,4512.9,4512.5,0.2948]
[1758072644724,0.7133,4512.9,4512.8,0.2102]
[1758072645024,0.8426,4512.5,4512.4,0.2179]
[1758072645424,0.8426,4512.5,4512.4,0.2102]
[1758072647526,0.2969,4512.4,4511.9,0.94086545]
[1758072647729,0.8426,4512.0,4511.9,1.35216545]
[1758072648224,0.8426,4512.0,4511.9,1.64696545]
[1758072648728,0.5011,4512.0,4511.9,0.7061]
[1758072649027,0.5011,4512.0,4511.9,1.64696545]
[1758072649431,0.8426,4512.0,4511.5,0.2948]
[1758072649728,4.0504,4512.0,4511.9,0.2102]
[1758072652131,4.0504,4512.0,4511.6,0.2948]